[Event "15th Avicenna Open Masters 2018"]
[Site "Avicenna"]
[Date "2018.08.20"]
[Round "5"]
[White "Pour Agha Bala, Amirreza"]
[Black "Matinian, Nikita"]
[Result "0-1"]
[ECO "B94"]
[WhiteElo "2272"]
[BlackElo "2506"]
[Annotator "ChessBase"]
[PlyCount "114"]
[EventDate "2018.08.17"]
[EventType "swiss"]
[EventCountry "IRI"]
[SourceTitle "playchess.com"]
[Source "ChessBase"]
[SourceQuality "1"]
[TimeControl "5400+30"]

1. e4 {[%emt 0:00:00]} c5 {[%emt 0:00:00]} 2. Nf3 {[%emt 0:00:00]} d6 {[%emt 0:00:00]} 3. d4 {[%emt 0:00:00]} cxd4 {[%emt 0:00:00]} 4. Nxd4 {[%emt 0:00:00]} Nf6 {[%emt 0:00:00]} 5. Nc3 {[%emt 0:00:02]} a6 {[%emt 0:00:00]} 6. Bg5 {[%emt 0:02:47]} Nbd7 {[%emt 0:00:00]} 7. Qe2 {[%emt 0:01:02]} h6 {[%emt 0:00:11]} 8. Bxf6 {[%emt 0:00:11]} Nxf6 {[%emt 0:00:06]} 9. O-O-O {[%emt 0:00:08]} e5 {[%emt 0:03:15]} 10. Nf5 {[%emt 0:00:41]} Be6 {[%emt 0:04:33]} 11. Ne3 {[%emt 0:08:06]} Rc8 {[%emt 0:00:57]} 12. Ned5 {[%emt 0:01:54]} Nxd5 {[%emt 0:09:13]} 13. exd5 {[%emt 0:03:06]} Bd7 {[%emt 0:02:26]} 14. f4 {[%emt 0:05:08]} Qf6 {[%emt 0:09:00]} 15. g3 {[%emt 0:04:31]} Be7 {[%emt 0:01:09]} 16. Bg2 {[%emt 0:01:54]} exf4 {[%emt 0:09:56]} 17. Rhf1 {[%emt 0:05:36]} O-O {[%emt 0:04:42]} 18. Rxf4 {[%emt 0:25:15]} Qe5 {[%emt 0:08:41]} 19. Qxe5 {[%emt 0:11:23]} dxe5 {[%emt 0:00:04]} 20. Rff1 {[%emt 0:00:07]} f5 {[%emt 0:00:08]} 21. d6 {[%emt 0:00:32]} Bg5+ {[%emt 0:00:04]} 22. Kb1 {[%emt 0:00:03]} e4 {[%emt 0:00:13]} 23. h4 {[%emt 0:01:02]} Bd8 {[%emt 0:01:41]} 24. Nd5 {[%emt 0:02:39]} Re8 {[%emt 0:05:50]} 25. Bh3 {[%emt 0:13:33]} Re5 {[%emt 0:00:19]} 26. Ne3 {[%emt 0:00:36]} g6 {[%emt 0:00:27]} 27. g4 {[%emt 0:00:24]} Bxh4 {[%emt 0:10:30]} 28. gxf5 {[%emt 0:00:42]} Bg5 {[%emt 0:00:16]} 29. Ng4 {[%emt 0:03:23]} Rxf5 {[%emt 0:00:27]} 30. Rfe1 {[%emt 0:00:00]} Re8 {[%emt 0:02:40]} 31. Ne3 {[%emt 0:04:30]} Rf7 {[%emt 0:01:20]} 32. Bxd7 {[%emt 0:00:01]} Rxd7 {[%emt 0:00:04]} 33. c4 {[%emt 0:00:08]} b6 {[%emt 0:01:31]} 34. b4 {[%emt 0:01:00]} Rc8 {[%emt 0:00:31]} 35. Rd4 {[%emt 0:00:17]} Rc6 {[%emt 0:01:48]} 36. Rxe4 {[%emt 0:04:57]} Rcxd6 {[%emt 0:00:54]} 37. Ng4 {[%emt 0:00:25]} Kg7 {[%emt 0:00:37]} 38. a4 {[%emt 0:00:33]} Bd2 {[%emt 0:00:56]} 39. Re7+ {[%emt 0:00:19]} Rxe7 {[%emt 0:00:05]} 40. Rxe7+ {[%emt 0:00:01]} Kf8 {[%emt 0:00:06]} 41. Ra7 {[%emt 0:00:43]} Bxb4 {[%emt 0:02:03]} 42. Nxh6 {[%emt 0:00:22]} a5 {[%emt 0:00:56]} 43. Nf7 {[%emt 0:00:24]} Re6 {[%emt 0:00:40]} 44. Ng5 {[%emt 0:00:29]} Re7 {[%emt 0:00:22]} 45. Ra8+ {[%emt 0:00:21]} Kg7 {[%emt 0:00:04]} 46. Kc2 {[%emt 0:00:07]} Kf6 {[%emt 0:00:18]} 47. Nf3 {[%emt 0:00:11]} Re3 {[%emt 0:00:10]} 48. Nd4 {[%emt 0:01:10]} Rc3+ {[%emt 0:00:49]} 49. Kb2 {[%emt 0:00:02]} Rxc4 {[%emt 0:00:08]} 50. Nb3 {[%emt 0:00:05]} g5 {[%emt 0:00:44]} 51. Kb1 {[%emt 0:00:35]} g4 {[%emt 0:00:20]} 52. Rb8 {[%emt 0:00:12]} Kf5 {[%emt 0:00:33]} 53. Rxb6 {[%emt 0:00:24]} g3 {[%emt 0:00:05]} 54. Rb5+ {[%emt 0:00:17]} Kg4 {[%emt 0:00:18]} 55. Rb7 {[%emt 0:00:52]} g2 {[%emt 0:00:20]} 56. Rg7+ {[%emt 0:00:18]} Kf3 {[%emt 0:00:15]} 57. Nc1 {[%emt 0:00:23]} Rxc1+ {[%emt 0:00:43]} 0-1

[Event "15th Avicenna Open Masters 2018"]
[Site "Avicenna"]
[Date "2018.08.22"]
[Round "7"]
[White "Molaei, Mohammadamin"]
[Black "Daghli, Arash"]
[Result "1/2-1/2"]
[ECO "E06"]
[WhiteElo "2377"]
[BlackElo "2362"]
[Annotator "NA"]
[PlyCount "95"]
[EventDate "2018.08.17"]
[EventType "swiss"]
[EventCountry "IRI"]
[SourceTitle "playchess.com"]
[Source "ChessBase"]
[SourceQuality "1"]
[TimeControl "5400+30"]

1. d4 {[%emt 0:00:00]} Nf6 {[%emt 0:00:00]} 2. c4 {[%emt 0:00:00]} e6 {[%emt 0:00:00]} 3. g3 {[%emt 0:01:10]} d5 {[%emt 0:00:00]} 4. Nf3 {[%emt 0:00:07]} Be7 {[%emt 0:00:07]} 5. Bg2 {[%emt 0:00:13]} O-O {[%emt 0:00:13]} 6. O-O {[%emt 0:00:11]} dxc4 {[%emt 0:00:08]} 7. Qc2 {[%emt 0:00:08]} b5 {[%emt 0:00:13]} 8. a4 {[%emt 0:02:03] E05: Open Catalan: 5 Nf3 Be7} b4 {[%emt 0:00:13]} 9. Nfd2 {[%emt 0:00:41]} c6 {[%emt 0:00:13]} 10. Nxc4 {[%emt 0:01:50]} Qxd4 {[%emt 0:00:16]} 11. Rd1 {[%emt 0:00:06]} Qc5 {[%emt 0:01:02]} 12. Be3 {[%emt 0:02:05]} Qh5 {[%emt 0:07:00]} 13. Nbd2 {[%emt 0:05:38] [#]} Nd5 $146 {[%emt 0:03:47]} ({Predecessor:} 13... Ng4 14. Nf1 Nxe3 15. Nfxe3 a5 {½-½ (82) Vachier Lagrave,M (2789)-Nakamura,H (2769) Paris 2018}) 14. Ne4 {[%emt 0:07:53]} Nd7 {[%emt 0:05:47]} 15. Rac1 {[%emt 0:07:04]} (15. Bf3 $5 {[%cal Rf3h5]} Qg6 16. Na5 $14) 15... Ba6 {[%emt 0:16:45]} 16. Bf3 {[%emt 0:01:45]} Qf5 {[%emt 0:04:46]} 17. Bf4 {[%emt 0:17:09]} Bxc4 {[%emt 0:10:51]} 18. Qxc4 {[%emt 0:02:33]} N7b6 {[%emt 0:02:52]} 19. Qxc6 $15 {[%emt 0:02:40]} Nxf4 {[%emt 0:00:46]} 20. gxf4 {[%emt 0:00:13]} Qxf4 {[%emt 0:01:43]} 21. Qb7 {[%emt 0:02:15]} Nd5 {[%emt 0:04:02]} 22. Ng3 {[%emt 0:02:56]} Bf6 {[%emt 0:02:08]} 23. b3 {[%emt 0:05:47]} Nc3 {[%emt 0:09:15]} 24. e3 {[%emt 0:02:59]} Qb8 {[%emt 0:00:35]} 25. Qxa8 {[%emt 0:04:01]} Qxa8 {[%emt 0:01:54]} 26. Bxa8 {[%emt 0:00:26]} Nxd1 {[%emt 0:00:13]} 27. Rxd1 {[%emt 0:00:06]} Rxa8 {[%emt 0:00:11]} 28. Rd7 {[%emt 0:00:09]} Kf8 {[%emt 0:07:57]} 29. Ne4 {[%emt 0:01:47]} a5 {[%emt 0:02:53]} 30. Rb7 {[%emt 0:01:25]} Rd8 {[%emt 0:01:50]} 31. Rb5 {[%emt 0:09:21]} Rd1+ {[%emt 0:00:46]} 32. Kg2 {[%emt 0:00:06]} Bd8 {[%emt 0:00:37]} 33. Kf3 Rd5 {[%emt 0:04:54]} 34. Rb7 {[%emt 0:05:36]} f5 {[%emt 0:00:36]} 35. Ng3 {[%emt 0:00:10]} g6 {[%emt 0:06:07]} 36. Ke2 {[%emt 0:00:35]} Rc5 {[%emt 0:02:49]} 37. Nf1 {[%emt 0:08:18]} Bc7 {[%emt 0:00:17]} 38. Nd2 {[%emt 0:01:33]} h5 {[%emt 0:01:27]} 39. h4 {[%emt 0:03:33]} Bd8 {[%emt 0:02:02]} 40. Nf3 {[%emt 0:00:19]} Bf6 {[%emt 0:01:20]} 41. Ra7 {[%emt 0:00:28]} e5 {[%emt 0:00:53]} 42. Ra6 {[%emt 0:00:15]} Kf7 {[%emt 0:00:23]} 43. Ra7+ {[%emt 0:00:05]} Kg8 {[%emt 0:00:28]} 44. Ra6 {[%emt 0:00:07]} Kg7 {[%emt 0:00:27]} 45. Ra7+ {[%emt 0:00:05]} Kg8 {[%emt 0:00:33]} 46. Ra6 {[%emt 0:00:03]} Kg7 {[%emt 0:00:02]} 47. Ra7+ {[%emt 0:00:14]} Kg8 {[%emt 0:01:14]} 48. Ra6 {[%emt 0:00:02]} 1/2-1/2

[Event "15th Avicenna Open Masters 2018"]
[Site "Avicenna"]
[Date "2018.08.22"]
[Round "7"]
[White "Hosseinzadeh, Nima"]
[Black "Morchiashvili, Bachana"]
[Result "1/2-1/2"]
[ECO "B32"]
[WhiteElo "2299"]
[BlackElo "2382"]
[Annotator "NA"]
[PlyCount "71"]
[EventDate "2018.08.17"]
[EventType "swiss"]
[EventCountry "IRI"]
[SourceTitle "playchess.com"]
[Source "ChessBase"]
[SourceQuality "1"]
[TimeControl "5400+30"]

1. e4 {[%emt 0:00:12]} c5 {[%emt 0:00:00]} 2. Nf3 {[%emt 0:00:51]} Nc6 {[%emt 0:00:00]} 3. d4 {[%emt 0:00:11]} cxd4 {[%emt 0:00:02]} 4. Nxd4 {[%emt 0:00:07]} Qb6 {[%emt 0:00:11]} 5. Nb3 {[%emt 0:00:29] LiveBook: 2667 Games} Nf6 {[%emt 0:00:17]} 6. Nc3 {[%emt 0:00:03]} e6 {[%emt 0:01:09]} 7. Qe2 {[%emt 0:00:22]} d6 {[%emt 0:04:08]} 8. Be3 {[%emt 0:01:41] B33: Sicilian: Pelikan and Sveshnikov Variations} (8. f4 Qc7 9. Nb5 Qb8 10. g4 a6 11. N5d4 Qc7 12. Bg2 Nxd4 13. Nxd4 e5 14. Nf5 g6 15. fxe5 dxe5 {1-0 (32) Shirov,A (2673)-Ehlvest,J (2532) Puhajarve 2016}) 8... Qc7 {[%emt 0:00:15]} 9. O-O-O {[%emt 0:02:31]} a6 {[%emt 0:00:43]} 10. g4 {[%emt 0:04:34]} Be7 {[%emt 0:03:33]} 11. g5 {[%emt 0:00:29]} Nd7 {[%emt 0:00:07]} 12. f4 {[%emt 0:11:51]} b5 {[%emt 0:06:32]} 13. Qf2 {[%emt 0:00:41]} Bb7 {[%emt 0:04:23]} 14. Kb1 {[%emt 0:07:53]} b4 $146 {[%emt 0:04:50]} ({Predecessor:} 14... Na5 15. Bg2 Nc4 {1-0 (56) Czaeczine,A (2193)-Lorenz,N (1940) Germany 2018}) 15. Na4 {[%emt 0:09:27]} O-O {[%emt 0:05:29]} 16. Bd3 {[%emt 0:01:34]} Bd8 $16 {[%emt 0:10:11]} 17. Qh4 {[%emt 0:18:44]} g6 {[%emt 0:13:13]} 18. Rhf1 {[%emt 0:07:15]} Re8 {[%emt 0:13:59]} 19. f5 {[%emt 0:01:23]} exf5 {[%emt 0:01:12]} 20. exf5 {[%emt 0:00:01]} Nce5 {[%emt 0:02:11]} 21. Bd4 {[%emt 0:06:38]} Be7 {[%emt 0:08:43]} 22. Nd2 {[%emt 0:13:02]} Rac8 {[%emt 0:03:01]} 23. Nc4 {[%emt 0:04:40]} Bf8 {[%emt 0:04:40]} 24. fxg6 {[%emt 0:02:01]} fxg6 {[%emt 0:00:29]} 25. Nab6 {[%emt 0:00:17]} Nxb6 {[%emt 0:05:54]} 26. Bxb6 {[%emt 0:02:58]} Qc6 {[%emt 0:03:43]} 27. Nxe5 {[%emt 0:00:03]} dxe5 {[%emt 0:00:31]} 28. Rf6 {[%emt 0:00:02]} Qg2 {[%emt 0:01:20]} 29. Bxg6 {[%emt 0:02:43]} hxg6 {[%emt 0:00:10]} 30. Rxg6+ {[%emt 0:00:01]} Bg7 {[%emt 0:00:03]} 31. Rxg7+ {[%emt 0:00:14]} Kxg7 {[%emt 0:00:01]} 32. Rd7+ {[%emt 0:00:19]} Re7 {[%emt 0:02:06]} 33. Qh6+ {[%emt 0:02:37]} Kg8 {[%emt 0:00:05]} 34. Qg6+ {[%emt 0:00:08]} Kh8 {[%emt 0:00:16]} 35. Qf6+ {[%emt 0:00:27]} Kg8 {[%emt 0:00:06]} 36. Qg6+ {[%emt 0:00:34]} 1/2-1/2

[Event "15th Avicenna Open Masters 2018"]
[Site "Avicenna"]
[Date "2018.08.22"]
[Round "7"]
[White "Khoshkalam, Seyed Mehrab"]
[Black "Guliev, Logman"]
[Result "1/2-1/2"]
[ECO "E11"]
[WhiteElo "2182"]
[BlackElo "2342"]
[Annotator "NA"]
[PlyCount "103"]
[EventDate "2018.08.17"]
[EventType "swiss"]
[EventCountry "IRI"]
[SourceTitle "playchess.com"]
[Source "ChessBase"]
[SourceQuality "1"]
[TimeControl "5400+30"]

1. d4 Nf6 2. Nf3 e6 3. c4 Bb4+ 4. Bd2 Bxd2+ 5. Nbxd2 O-O 6. e3 b6 {E11: Bogo-Indian} 7. Bd3 Bb7 8. O-O d6 9. Qc2 Nbd7 10. b4 c5 11. a3 Qe7 12. Rfd1 Rfc8 $146 ({Predecessor:} 12... e5 13. d5 g6 14. e4 Nh5 15. g3 Kg7 16. Nb3 f5 17. bxc5 bxc5 18. Ne1 f4 19. Qe2 {½-½ (19) Cherednichenko,E (2170)-Ganaus,H (2331) Prague 2013}) 13. Qb2 cxd4 14. Nxd4 Ne5 15. Bf1 Ne4 16. Nxe4 Bxe4 17. Rac1 Rd8 18. f3 Bb7 19. e4 $11 Rac8 20. Kh1 Ba6 21. Qb3 Rc7 22. f4 Ng4 23. Qg3 Nf6 24. e5 dxe5 25. fxe5 Ne8 26. Be2 Rdc8 27. Qf4 Bxc4 28. Bxc4 Rxc4 29. Nf5 exf5 30. Rxc4 Rxc4 31. Qxc4 Qxe5 32. Qd5 Qe2 33. Qd2 Qc4 34. Qd7 Qe2 35. Qd2 Qc4 36. Rc1 Qe6 37. Re1 Qc8 38. Rc1 Qe6 39. Qe1 Qd7 40. Rd1 Qc8 41. Qe7 g6 42. Qxa7 Qc2 43. Re1 Nf6 44. Qb8+ Kg7 45. Qxb6 Qb2 46. b5 Ne4 47. a4 Qb4 48. Rd1 Qb3 49. Qd4+ f6 50. Ra1 Nc3 51. b6 f4 52. b7 1/2-1/2